[Event "*** Titled Tuesday Blitz"]
[Site "Chess.com"]
[Date "2019.11.05"]
[Round "2"]
[White "Zavgorodniy_Serg"]
[Black "rasmussvane"]
[Result "0-1"]
[WhiteElo "2582"]
[BlackElo "2833"]
[TimeControl "180+2"]
[EndTime "13:23:58 PST"]
[Termination "rasmussvane won by resignation"]

1. e4 {[%clk 0:02:50.1]} 1... c6 {[%clk 0:03:00.9]} 2. d4 {[%clk 0:02:50.8]}
2... d5 {[%clk 0:03:02.8]} 3. exd5 {[%clk 0:02:52.7]} 3... cxd5 {[%clk 0:03:04]}
4. c4 {[%clk 0:02:54.6]} 4... Nf6 {[%clk 0:03:04.9]} 5. Nc3 {[%clk 0:02:56.3]}
5... Nc6 {[%clk 0:03:06.2]} 6. Nf3 {[%clk 0:02:57.3]} 6... a6 {[%clk 0:03:05.1]}
7. cxd5 {[%clk 0:02:56.4]} 7... Nxd5 {[%clk 0:03:07]} 8. Bd3 {[%clk 0:02:56.7]}
8... g6 {[%clk 0:03:07.5]} 9. O-O {[%clk 0:02:47.4]} 9... Bg7 {[%clk 0:03:08.2]}
10. Re1 {[%clk 0:02:49]} 10... O-O {[%clk 0:03:08.5]} 11. Nxd5 {[%clk
0:02:43.8]} 11... Qxd5 {[%clk 0:03:09]} 12. Be4 {[%clk 0:02:45.4]} 12... Qd6
{[%clk 0:03:06.5]} 13. d5 {[%clk 0:02:43]} 13... Ne5 {[%clk 0:02:57.4]} 14. Nxe5
{[%clk 0:02:32.9]} 14... Bxe5 {[%clk 0:02:59.3]} 15. g3 {[%clk 0:02:33.4]} 15...
Bd7 {[%clk 0:02:58.6]} 16. Bh6 {[%clk 0:02:26]} 16... Rfd8 {[%clk 0:02:55.1]}
17. Qd2 {[%clk 0:02:21.4]} 17... Rac8 {[%clk 0:02:54.4]} 18. Rad1 {[%clk
0:02:20]} 18... Ba4 {[%clk 0:02:50.6]} 19. Rc1 {[%clk 0:02:16.6]} 19... Qf6
{[%clk 0:02:31.3]} 20. Bg5 {[%clk 0:02:13.8]} 20... Qd6 {[%clk 0:02:31.9]} 21.
Bg2 {[%clk 0:02:13.1]} 21... Rxc1 {[%clk 0:02:25.9]} 22. Rxc1 {[%clk 0:02:13]}
22... Bd7 {[%clk 0:02:10.9]} 23. b3 {[%clk 0:02:00.4]} 23... Rc8 {[%clk
0:02:09.4]} 24. h4 {[%clk 0:01:54.1]} 24... Rxc1+ {[%clk 0:01:52.9]} 25. Qxc1
{[%clk 0:01:54.2]} 25... Bf5 {[%clk 0:01:53.8]} 26. Be3 {[%clk 0:01:33.2]} 26...
Qd7 {[%clk 0:01:50.8]} 27. Qc5 {[%clk 0:01:32]} 27... h5 {[%clk 0:01:47]} 28.
Bd4 {[%clk 0:01:32.7]} 28... Bxd4 {[%clk 0:01:46.6]} 29. Qxd4 {[%clk 0:01:33.7]}
29... Qc7 {[%clk 0:01:44.7]} 30. Qe3 {[%clk 0:01:29.9]} 30... Kg7 {[%clk
0:01:38.7]} 31. Kh2 {[%clk 0:01:30.4]} 31... Qd6 {[%clk 0:01:37.6]} 32. Qd4+
{[%clk 0:01:29.7]} 32... Kg8 {[%clk 0:01:35.6]} 33. Qc4 {[%clk 0:01:29.9]} 33...
Bd7 {[%clk 0:01:34.4]} 34. a4 {[%clk 0:01:27.5]} 34... a5 {[%clk 0:01:34.6]} 35.
Qc3 {[%clk 0:01:24.4]} 35... b6 {[%clk 0:01:35.2]} 36. Qe3 {[%clk 0:01:23.9]}
36... Kg7 {[%clk 0:01:35.7]} 37. Bf3 {[%clk 0:01:24.7]} 37... Qf6 {[%clk
0:01:35.1]} 38. Bg2 {[%clk 0:01:23.4]} 38... Bg4 {[%clk 0:01:35.9]} 39. f4
{[%clk 0:01:24]} 39... Kf8 {[%clk 0:01:32.4]} 40. Kg1 {[%clk 0:01:25.3]} 40...
Qa1+ {[%clk 0:01:31.7]} 41. Kh2 {[%clk 0:01:22.9]} 41... Qf6 {[%clk 0:01:31.2]}
42. Kg1 {[%clk 0:01:24.1]} 42... Kg8 {[%clk 0:01:30.4]} 43. Kf2 {[%clk
0:01:24.5]} 43... Qb2+ {[%clk 0:01:30.9]} 44. Kg1 {[%clk 0:01:24.9]} 44... Qb1+
{[%clk 0:01:31]} 45. Kh2 {[%clk 0:01:25.4]} 45... Qc2 {[%clk 0:01:30.7]} 46. Kg1
{[%clk 0:01:17.8]} 46... Qb1+ {[%clk 0:01:30.3]} 47. Kh2 {[%clk 0:01:19]} 47...
Qb2 {[%clk 0:01:31.6]} 48. Kg1 {[%clk 0:01:18.2]} 48... Qf6 {[%clk 0:01:32.6]}
49. Kf2 {[%clk 0:01:19.1]} 49... Bf5 {[%clk 0:01:32.2]} 50. Bf3 {[%clk
0:01:16.7]} 50... Bc2 {[%clk 0:01:32.1]} 51. Be2 {[%clk 0:01:14]} 51... Qd6
{[%clk 0:01:29.4]} 52. Bc4 {[%clk 0:01:13.3]} 52... Bf5 {[%clk 0:01:30.5]} 53.
Ke1 {[%clk 0:01:14]} 53... Kh7 {[%clk 0:01:30]} 54. Kd2 {[%clk 0:01:14.9]} 54...
Qb4+ {[%clk 0:01:29.4]} 55. Qc3 {[%clk 0:01:15.6]} 55... Qa3 {[%clk 0:01:28.9]}
56. Qe5 {[%clk 0:01:16.6]} 56... Qc5 {[%clk 0:01:21.8]} 57. Kc3 {[%clk
0:01:15.3]} 57... Qb4+ {[%clk 0:01:19.5]} 58. Kb2 {[%clk 0:01:16.6]} 58... Qd2+
{[%clk 0:01:20.5]} 59. Ka1 {[%clk 0:01:15.3]} 59... Qc1+ {[%clk 0:01:18]} 60.
Ka2 {[%clk 0:01:16.1]} 0-1

[Event "*** Titled Tuesday Blitz"]
[Site "Chess.com"]
[Date "2019.11.05"]
[Round "2"]
[White "mikhaillushenkov"]
[Black "mjray79"]
[Result "1-0"]
[WhiteElo "2696"]
[BlackElo "2213"]
[TimeControl "180+2"]
[EndTime "13:23:58 PST"]
[Termination "mikhaillushenkov won by resignation"]

1. Nf3 {[%clk 0:03:01.9]} 1... Nf6 {[%clk 0:02:59.7]} 2. c4 {[%clk 0:03:02.1]}
2... e6 {[%clk 0:02:57.1]} 3. d4 {[%clk 0:03:00.7]} 3... d5 {[%clk 0:02:58.1]}
4. Nc3 {[%clk 0:03:01.5]} 4... Be7 {[%clk 0:02:58.1]} 5. Qc2 {[%clk 0:03:01.3]}
5... O-O {[%clk 0:02:58.8]} 6. e4 {[%clk 0:03:02.7]} 6... dxe4 {[%clk
0:02:53.6]} 7. Nxe4 {[%clk 0:03:04.6]} 7... b6 {[%clk 0:02:53.6]} 8. Bd3 {[%clk
0:03:04.8]} 8... Nbd7 {[%clk 0:02:49]} 9. Bg5 {[%clk 0:03:04.3]} 9... h6 {[%clk
0:02:42.8]} 10. Bh4 {[%clk 0:02:50.5]} 10... Bb7 {[%clk 0:02:40.7]} 11. O-O
{[%clk 0:02:47.1]} 11... c5 {[%clk 0:02:26.4]} 12. dxc5 {[%clk 0:02:38]} 12...
Nxc5 {[%clk 0:02:08]} 13. Nxc5 {[%clk 0:02:38.8]} 13... Bxf3 {[%clk 0:02:07.7]}
14. Nxe6 {[%clk 0:02:20.8]} 14... fxe6 {[%clk 0:02:08]} 15. gxf3 {[%clk
0:02:21.9]} 15... Nh5 {[%clk 0:02:05.7]} 16. Bxe7 {[%clk 0:02:16]} 16... Qxe7
{[%clk 0:02:06.4]} 17. Be4 {[%clk 0:02:17.2]} 17... Nf4 {[%clk 0:02:00.3]} 18.
Kh1 {[%clk 0:02:17.9]} 18... Rac8 {[%clk 0:01:46.2]} 19. Rg1 {[%clk 0:02:14.7]}
19... Qh4 {[%clk 0:01:42.7]} 20. Rg4 {[%clk 0:02:13.1]} 20... Qh3 {[%clk
0:01:35]} 21. Rag1 {[%clk 0:02:09.1]} 21... Rc7 {[%clk 0:01:34.1]} 22. b4 {[%clk
0:02:00.7]} 22... Rcf7 {[%clk 0:01:32.8]} 23. c5 {[%clk 0:01:57.1]} 23... bxc5
{[%clk 0:01:28.3]} 24. bxc5 {[%clk 0:01:59]} 24... g5 {[%clk 0:01:12.9]} 25. c6
{[%clk 0:01:56.7]} 25... Rg7 {[%clk 0:01:13.1]} 26. a4 {[%clk 0:01:30]} 26...
Nh5 {[%clk 0:00:40]} 27. Qb3 {[%clk 0:01:05.4]} 27... Nf6 {[%clk 0:00:33.1]} 28.
Qxe6+ {[%clk 0:01:02.3]} 28... Kh8 {[%clk 0:00:33.8]} 29. Qd6 {[%clk 0:00:41.6]}
29... Rgf7 {[%clk 0:00:17.9]} 30. R4g3 {[%clk 0:00:37.5]} 30... Qh5 {[%clk
0:00:13]} 31. Qe5 {[%clk 0:00:25.3]} 31... Kg8 {[%clk 0:00:13.2]} 32. Rxg5+
{[%clk 0:00:21.6]} 32... hxg5 {[%clk 0:00:12.2]} 33. Rxg5+ {[%clk 0:00:23.5]}
33... Qxg5 {[%clk 0:00:11.7]} 34. Qxg5+ {[%clk 0:00:25.4]} 34... Kh8 {[%clk
0:00:12.6]} 35. Qh6+ {[%clk 0:00:23.5]} 35... Nh7 {[%clk 0:00:13]} 36. Bxh7
{[%clk 0:00:23.9]} 36... Rxf3 {[%clk 0:00:12.6]} 1-0

[Event "*** Titled Tuesday Blitz"]
[Site "Chess.com"]
[Date "2019.11.05"]
[Round "2"]
[White "vanyakuba"]
[Black "Sanan_Sjugirov"]
[Result "0-1"]
[WhiteElo "2397"]
[BlackElo "2968"]
[TimeControl "180+2"]
[EndTime "13:24:01 PST"]
[Termination "Sanan_Sjugirov won on time"]

1. e4 {[%clk 0:03:01.9]} 1... g6 {[%clk 0:02:59.8]} 2. d4 {[%clk 0:03:02.5]}
2... Bg7 {[%clk 0:03:01.2]} 3. Nc3 {[%clk 0:03:04.1]} 3... d6 {[%clk 0:03:02]}
4. f4 {[%clk 0:03:05.2]} 4... a6 {[%clk 0:03:02]} 5. a4 {[%clk 0:03:04.9]} 5...
Nd7 {[%clk 0:03:02.1]} 6. Nf3 {[%clk 0:03:06.2]} 6... c5 {[%clk 0:03:01]} 7. Be2
{[%clk 0:03:04.4]} 7... cxd4 {[%clk 0:02:58.3]} 8. Nxd4 {[%clk 0:03:05]} 8...
Ngf6 {[%clk 0:02:57.8]} 9. O-O {[%clk 0:03:02.2]} 9... O-O {[%clk 0:02:54.5]}
10. Kh1 {[%clk 0:02:49.5]} 10... Qc7 {[%clk 0:02:49.6]} 11. a5 {[%clk
0:02:39.3]} 11... b5 {[%clk 0:02:39.5]} 12. axb6 {[%clk 0:02:39.6]} 12... Nxb6
{[%clk 0:02:39.9]} 13. Bf3 {[%clk 0:02:37.8]} 13... Bb7 {[%clk 0:02:38.1]} 14.
Re1 {[%clk 0:02:27.7]} 14... Rfd8 {[%clk 0:02:34]} 15. Nb3 {[%clk 0:01:53.8]}
15... d5 {[%clk 0:02:21.7]} 16. e5 {[%clk 0:01:46.9]} 16... Ne4 {[%clk
0:02:22.3]} 17. Bxe4 {[%clk 0:01:20.1]} 17... dxe4 {[%clk 0:02:24.2]} 18. Qe2
{[%clk 0:01:20.5]} 18... Rac8 {[%clk 0:02:23.6]} 19. Na5 {[%clk 0:01:14.8]}
19... Ba8 {[%clk 0:02:24.7]} 20. Be3 {[%clk 0:01:13.8]} 20... Nd5 {[%clk
0:02:23.5]} 21. Nxd5 {[%clk 0:01:13]} 21... Rxd5 {[%clk 0:02:20.2]} 22. Qxa6
{[%clk 0:01:07.1]} 22... g5 {[%clk 0:02:14.3]} 23. c4 {[%clk 0:00:55.6]} 23...
Rd3 {[%clk 0:02:12.6]} 24. Bb6 {[%clk 0:00:29.6]} 24... Qd7 {[%clk 0:02:12.4]}
25. Qb5 {[%clk 0:00:21.1]} 25... Qg4 {[%clk 0:02:09.4]} 26. Rg1 {[%clk 0:00:09]}
26... e3 {[%clk 0:02:08]} 27. c5 {[%clk 0:00:08]} 27... Be4 {[%clk 0:01:56.4]}
28. Qc4 {[%clk 0:00:07.8]} 28... Bxg2+ {[%clk 0:01:29.7]} 29. Rxg2 {[%clk
0:00:08.5]} 29... Rd1+ {[%clk 0:01:31.3]} 30. Rxd1 {[%clk 0:00:04.3]} 30...
Qxd1+ {[%clk 0:01:33.2]} 31. Rg1 {[%clk 0:00:06.2]} 31... e2 {[%clk 0:01:34.9]}
32. c6 {[%clk 0:00:05]} 32... e1=Q {[%clk 0:01:29.4]} 33. Rxe1 {[%clk
0:00:04.6]} 33... Qxe1+ {[%clk 0:01:31.3]} 34. Kg2 {[%clk 0:00:05.3]} 34... gxf4
{[%clk 0:01:28.2]} 35. e6 {[%clk 0:00:05.6]} 35... fxe6 {[%clk 0:01:25.1]} 36.
c7 {[%clk 0:00:06.3]} 36... f3+ {[%clk 0:01:24]} 37. Kh3 {[%clk 0:00:03.8]}
37... Kh8 {[%clk 0:01:16.6]} 38. Nc6 {[%clk 0:00:04.3]} 38... f2 {[%clk
0:01:11.4]} 39. Bxf2 {[%clk 0:00:04.9]} 39... Qxf2 {[%clk 0:01:13.3]} 40. Qxe6
{[%clk 0:00:05.6]} 40... Qf3+ {[%clk 0:01:12.4]} 41. Kh4 {[%clk 0:00:05.5]}
41... Bf6+ {[%clk 0:01:13.8]} 0-1

[Event "*** Titled Tuesday Blitz"]
[Site "Chess.com"]
[Date "2019.11.05"]
[Round "2"]
[White "gmcorrales"]
[Black "Mikhail_Golubev"]
[Result "0-1"]
[WhiteElo "2868"]
[BlackElo "2619"]
[TimeControl "180+2"]
[EndTime "13:24:02 PST"]
[Termination "Mikhail_Golubev won by resignation"]

1. e4 {[%clk 0:03:01.9]} 1... c5 {[%clk 0:02:59.8]} 2. Nf3 {[%clk 0:03:02.9]}
2... d6 {[%clk 0:03:00.8]} 3. d4 {[%clk 0:03:04.5]} 3... Nf6 {[%clk 0:03:01.8]}
4. Nc3 {[%clk 0:03:05.2]} 4... cxd4 {[%clk 0:03:02.8]} 5. Nxd4 {[%clk
0:03:07.1]} 5... g6 {[%clk 0:03:02.7]} 6. Be3 {[%clk 0:03:07.8]} 6... Bg7 {[%clk
0:03:03.6]} 7. f3 {[%clk 0:03:09]} 7... O-O {[%clk 0:03:04.2]} 8. Qd2 {[%clk
0:03:10.6]} 8... Nc6 {[%clk 0:03:05.2]} 9. O-O-O {[%clk 0:03:11.2]} 9... d5
{[%clk 0:03:05.3]} 10. exd5 {[%clk 0:03:13.1]} 10... Nxd5 {[%clk 0:03:05.6]} 11.
Nxc6 {[%clk 0:03:14]} 11... bxc6 {[%clk 0:03:06.6]} 12. Bd4 {[%clk 0:03:15.3]}
12... e5 {[%clk 0:03:07.4]} 13. Bc5 {[%clk 0:03:15.7]} 13... Be6 {[%clk
0:03:08.1]} 14. Ne4 {[%clk 0:03:14.4]} 14... Re8 {[%clk 0:02:59]} 15. g4 {[%clk
0:03:14.7]} 15... Qc7 {[%clk 0:02:53.4]} 16. h4 {[%clk 0:03:14.7]} 16... Rad8
{[%clk 0:02:50.7]} 17. h5 {[%clk 0:03:12.1]} 17... Nf4 {[%clk 0:02:42.3]} 18.
Bd6 {[%clk 0:03:07.5]} 18... Qb6 {[%clk 0:02:32.4]} 19. hxg6 {[%clk 0:03:08.6]}
19... hxg6 {[%clk 0:02:25.4]} 20. c4 {[%clk 0:01:38.5]} 20... Rxd6 {[%clk
0:01:43.6]} 21. Qxd6 {[%clk 0:01:34]} 21... Qe3+ {[%clk 0:01:40.9]} 22. Rd2
{[%clk 0:01:35.1]} 22... Qxf3 {[%clk 0:01:38.3]} 23. Qxc6 {[%clk 0:01:34.2]}
23... Kf8 {[%clk 0:00:43.4]} 24. Rg1 {[%clk 0:01:09.9]} 24... Rc8 {[%clk
0:00:34.9]} 25. Qb7 {[%clk 0:00:50.9]} 25... Bxg4 {[%clk 0:00:21.3]} 26. Qb4+
{[%clk 0:00:17.5]} 26... Kg8 {[%clk 0:00:20.2]} 27. Ng5 {[%clk 0:00:19]} 27...
Qe3 {[%clk 0:00:17.4]} 28. Rxg4 {[%clk 0:00:19.9]} 28... Qe1+ {[%clk 0:00:18.4]}
29. Kc2 {[%clk 0:00:20]} 29... Qxf1 {[%clk 0:00:19.6]} 30. Kb3 {[%clk
0:00:15.6]} 30... Nd3 {[%clk 0:00:18.4]} 31. Qb7 {[%clk 0:00:12.3]} 31... Nc5+
{[%clk 0:00:18.4]} 32. Kb4 {[%clk 0:00:11.4]} 32... Nxb7 {[%clk 0:00:19.1]} 33.
Rd7 {[%clk 0:00:13]} 33... Bf8+ {[%clk 0:00:19.1]} 34. Kb5 {[%clk 0:00:13.7]}
34... Nd6+ {[%clk 0:00:18.7]} 35. Ka6 {[%clk 0:00:14.7]} 35... Rxc4 {[%clk
0:00:19.1]} 36. Rxc4 {[%clk 0:00:13]} 36... Qxc4+ {[%clk 0:00:18.8]} 37. Kxa7
{[%clk 0:00:14.4]} 37... Qa4+ {[%clk 0:00:19.7]} 0-1

[Event "*** Titled Tuesday Blitz"]
[Site "Chess.com"]
[Date "2019.11.05"]
[Round "2"]
[White "gemarin"]
[Black "Konavets"]
[Result "0-1"]
[WhiteElo "2133"]
[BlackElo "2999"]
[TimeControl "180+2"]
[EndTime "13:24:03 PST"]
[Termination "Konavets won by resignation"]

1. d4 {[%clk 0:03:01.9]} 1... d5 {[%clk 0:03:01.1]} 2. c4 {[%clk 0:03:02.2]}
2... c6 {[%clk 0:03:03]} 3. Nc3 {[%clk 0:03:02.2]} 3... e6 {[%clk 0:03:03.3]} 4.
cxd5 {[%clk 0:02:56.5]} 4... exd5 {[%clk 0:03:04.3]} 5. Nf3 {[%clk 0:02:56]}
5... Bd6 {[%clk 0:03:05.5]} 6. Bg5 {[%clk 0:02:55.5]} 6... Nf6 {[%clk
0:03:05.8]} 7. e3 {[%clk 0:02:55.8]} 7... Bf5 {[%clk 0:03:05.9]} 8. Bd3 {[%clk
0:02:56.1]} 8... Bxd3 {[%clk 0:03:06.2]} 9. Qxd3 {[%clk 0:02:56.6]} 9... O-O
{[%clk 0:03:08.1]} 10. O-O {[%clk 0:02:50.2]} 10... Nbd7 {[%clk 0:03:08.7]} 11.
Qf5 {[%clk 0:02:46.5]} 11... Re8 {[%clk 0:03:09.4]} 12. Rac1 {[%clk 0:02:34.4]}
12... Re6 {[%clk 0:03:10.2]} 13. Rfe1 {[%clk 0:02:31.6]} 13... h6 {[%clk
0:03:10.4]} 14. Bh4 {[%clk 0:02:31.8]} 14... Qe8 {[%clk 0:03:09.3]} 15. Bg3
{[%clk 0:02:22.9]} 15... Bb4 {[%clk 0:03:10.2]} 16. a3 {[%clk 0:02:10.6]} 16...
Bxc3 {[%clk 0:03:06.3]} 17. bxc3 {[%clk 0:02:11.5]} 17... Ne4 {[%clk 0:03:08.2]}
18. c4 {[%clk 0:02:08.4]} 18... Nb6 {[%clk 0:03:08.3]} 19. cxd5 {[%clk
0:02:07.7]} 19... Nxd5 {[%clk 0:03:10.2]} 20. Ne5 {[%clk 0:01:59]} 20... Ndf6
{[%clk 0:03:11]} 21. Rb1 {[%clk 0:01:54]} 21... Qe7 {[%clk 0:03:10.5]} 22. Ra1
{[%clk 0:01:43.2]} 22... Rd8 {[%clk 0:03:10.7]} 23. a4 {[%clk 0:01:39.8]} 23...
Nxg3 {[%clk 0:03:11.1]} 24. hxg3 {[%clk 0:01:39]} 24... Rd5 {[%clk 0:03:13]} 25.
Qf3 {[%clk 0:01:38.5]} 25... Nd7 {[%clk 0:03:11.5]} 26. Nc4 {[%clk 0:01:32.8]}
26... Nb6 {[%clk 0:03:12.1]} 27. Nxb6 {[%clk 0:01:29.6]} 27... axb6 {[%clk
0:03:14]} 28. Reb1 {[%clk 0:01:27.4]} 28... Qc7 {[%clk 0:03:14.8]} 29. Qd1
{[%clk 0:01:26.4]} 29... c5 {[%clk 0:03:15.4]} 30. Qb3 {[%clk 0:01:25.8]} 30...
Red6 {[%clk 0:03:16.7]} 31. a5 {[%clk 0:01:18.2]} 31... cxd4 {[%clk 0:03:08.8]}
32. axb6 {[%clk 0:01:16.4]} 32... Qd8 {[%clk 0:03:09.8]} 33. exd4 {[%clk
0:01:12.9]} 33... Rxd4 {[%clk 0:03:11.7]} 34. Qf3 {[%clk 0:01:03.2]} 34... Rc6
{[%clk 0:03:03.1]} 35. Ra7 {[%clk 0:00:59.1]} 35... Rxb6 {[%clk 0:02:57.1]} 36.
Rxb7 {[%clk 0:00:57.1]} 36... Rxb1+ {[%clk 0:02:56.9]} 37. Rxb1 {[%clk
0:00:56.4]} 37... g6 {[%clk 0:02:58.4]} 38. Qe3 {[%clk 0:00:54.6]} 38... h5
{[%clk 0:02:57.2]} 39. Qf3 {[%clk 0:00:53.4]} 39... Kg7 {[%clk 0:02:57.3]} 40.
Rb7 {[%clk 0:00:51.5]} 40... Qe8 {[%clk 0:02:57.9]} 41. Qc3 {[%clk 0:00:50.5]}
41... Qe5 {[%clk 0:02:59]} 42. Qc7 {[%clk 0:00:42.7]} 42... Qe1+ {[%clk
0:02:56.9]} 43. Kh2 {[%clk 0:00:41.6]} 43... Qxf2 {[%clk 0:02:58.8]} 44. Qe5+
{[%clk 0:00:37.8]} 44... Qf6 {[%clk 0:02:59.4]} 45. Qxf6+ {[%clk 0:00:35.1]}
45... Kxf6 {[%clk 0:03:01.3]} 46. Rb5 {[%clk 0:00:33.7]} 46... Ke6 {[%clk
0:03:02.4]} 47. Rb7 {[%clk 0:00:34]} 47... Rd5 {[%clk 0:03:03.2]} 48. Rb6+
{[%clk 0:00:33.6]} 48... Rd6 {[%clk 0:03:03.4]} 49. Rb7 {[%clk 0:00:34.5]} 49...
f6 {[%clk 0:03:04.4]} 50. Rg7 {[%clk 0:00:33.2]} 50... Kf5 {[%clk 0:03:05.5]}
51. Rb7 {[%clk 0:00:33.8]} 51... Rd5 {[%clk 0:03:07.3]} 52. Rb4 {[%clk
0:00:34.4]} 52... Re5 {[%clk 0:03:08.7]} 53. Rf4+ {[%clk 0:00:35]} 53... Kg5
{[%clk 0:03:10.2]} 54. Rb4 {[%clk 0:00:35.7]} 54... Re2 {[%clk 0:03:11.1]} 55.
Rc4 {[%clk 0:00:34.1]} 55... f5 {[%clk 0:03:12.2]} 56. Rb4 {[%clk 0:00:34.8]}
56... Re4 {[%clk 0:03:13.4]} 57. Rb6 {[%clk 0:00:34.5]} 57... Rd4 {[%clk
0:03:14.2]} 58. Rc6 {[%clk 0:00:35.2]} 58... Kh6 {[%clk 0:03:15.1]} 59. Rf6
{[%clk 0:00:34.9]} 59... Re4 {[%clk 0:03:16.2]} 60. Rb6 {[%clk 0:00:34.5]} 60...
Kg7 {[%clk 0:03:17.8]} 61. Rc6 {[%clk 0:00:34.8]} 61... Kf7 {[%clk 0:03:18.9]}
62. Rb6 {[%clk 0:00:35.5]} 62... Re6 {[%clk 0:03:20.1]} 63. Rb7+ {[%clk
0:00:35.2]} 63... Kf6 {[%clk 0:03:22]} 64. Rb4 {[%clk 0:00:35.5]} 64... Rd6
{[%clk 0:03:22.3]} 65. Ra4 {[%clk 0:00:36.1]} 65... g5 {[%clk 0:03:19.8]} 66.
Ra5 {[%clk 0:00:36.2]} 66... Ke6 {[%clk 0:03:20.5]} 67. Rb5 {[%clk 0:00:36.5]}
67... Rc6 {[%clk 0:03:17.4]} 68. Ra5 {[%clk 0:00:37.3]} 68... Kf6 {[%clk
0:03:19]} 69. Rb5 {[%clk 0:00:38.2]} 69... g4 {[%clk 0:03:20.1]} 70. Ra5 {[%clk
0:00:37.8]} 70... Rc2 {[%clk 0:03:20.7]} 71. Ra8 {[%clk 0:00:37.1]} 71... h4
{[%clk 0:03:16.4]} 72. gxh4 {[%clk 0:00:34.5]} 72... f4 {[%clk 0:03:17.7]} 73.
Rf8+ {[%clk 0:00:32.1]} 73... Ke5 {[%clk 0:03:18.7]} 74. Re8+ {[%clk 0:00:30.1]}
74... Kd4 {[%clk 0:03:18.6]} 75. h5 {[%clk 0:00:27.7]} 75... f3 {[%clk
0:03:18.8]} 76. h6 {[%clk 0:00:24.8]} 76... Rxg2+ {[%clk 0:03:19.4]} 77. Kh1
{[%clk 0:00:24.5]} 77... Rg3 {[%clk 0:03:21.3]} 78. Rg8 {[%clk 0:00:16.6]} 78...
f2 {[%clk 0:03:21.1]} 79. Rf8 {[%clk 0:00:17]} 79... Rg1+ {[%clk 0:03:22.2]} 80.
Kh2 {[%clk 0:00:17.8]} 80... f1=Q {[%clk 0:03:24.1]} 81. Rxf1 {[%clk 0:00:16.2]}
81... Rxf1 {[%clk 0:03:26]} 0-1

[Event "*** Titled Tuesday Blitz"]
[Site "Chess.com"]
[Date "2019.11.05"]
[Round "2"]
[White "Vojtap"]
[Black "Vamostodorecto"]
[Result "0-1"]
[WhiteElo "2148"]
[BlackElo "2441"]
[TimeControl "180+2"]
[EndTime "13:24:04 PST"]
[Termination "Vamostodorecto won by resignation"]

1. e3 {[%clk 0:03:01.9]} 1... e5 {[%clk 0:03:00.6]} 2. e4 {[%clk 0:03:00.7]}
2... Nc6 {[%clk 0:03:00.5]} 3. Nc3 {[%clk 0:02:58.5]} 3... Nf6 {[%clk
0:03:00.3]} 4. d3 {[%clk 0:02:59.4]} 4... d5 {[%clk 0:02:59.5]} 5. exd5 {[%clk
0:02:59.4]} 5... Nxd5 {[%clk 0:02:59.3]} 6. Nf3 {[%clk 0:02:58.5]} 6... Bc5
{[%clk 0:02:58.7]} 7. Be2 {[%clk 0:02:52.7]} 7... O-O {[%clk 0:02:53.7]} 8. O-O
{[%clk 0:02:53.3]} 8... h6 {[%clk 0:02:44.8]} 9. Re1 {[%clk 0:02:53.4]} 9... f5
{[%clk 0:02:42.5]} 10. Bf1 {[%clk 0:02:53.1]} 10... Nxc3 {[%clk 0:02:36.9]} 11.
bxc3 {[%clk 0:02:52.7]} 11... Qf6 {[%clk 0:02:22]} 12. Be3 {[%clk 0:02:10.7]}
12... Bb6 {[%clk 0:02:20.5]} 13. d4 {[%clk 0:02:08.4]} 13... e4 {[%clk
0:02:19.3]} 14. Bc4+ {[%clk 0:02:06]} 14... Kh8 {[%clk 0:02:15.9]} 15. Nd2
{[%clk 0:01:48.2]} 15... f4 {[%clk 0:01:50.3]} 16. Nxe4 {[%clk 0:01:46.5]} 16...
Qg6 {[%clk 0:01:51.9]} 17. Bc1 {[%clk 0:01:32.9]} 17... f3 {[%clk 0:01:40]} 18.
Ng3 {[%clk 0:01:29]} 18... Bg4 {[%clk 0:01:27.3]} 19. Ba3 {[%clk 0:01:16.6]}
19... Rf6 {[%clk 0:01:14.4]} 20. Qd3 {[%clk 0:01:15.7]} 20... Qg5 {[%clk
0:01:10]} 21. Ne4 {[%clk 0:01:05.5]} 21... Qf4 {[%clk 0:00:55.1]} 22. Nxf6
{[%clk 0:01:03.4]} 22... Qxf6 {[%clk 0:00:57]} 23. Bd5 {[%clk 0:00:55.6]} 23...
fxg2 {[%clk 0:00:52.8]} 24. Bxg2 {[%clk 0:00:56.1]} 24... Nxd4 {[%clk
0:00:51.2]} 25. cxd4 {[%clk 0:00:55.6]} 25... Bxd4 {[%clk 0:00:53.1]} 26. Qg3
{[%clk 0:00:32.8]} 26... Bxa1 {[%clk 0:00:40.2]} 27. Qxg4 {[%clk 0:00:33]} 27...
Bd4 {[%clk 0:00:32.9]} 28. Re2 {[%clk 0:00:28.9]} 28... c6 {[%clk 0:00:31.4]}
29. Bc1 {[%clk 0:00:23.8]} 29... Rf8 {[%clk 0:00:25.8]} 30. Be3 {[%clk
0:00:21.6]} 30... Bxe3 {[%clk 0:00:23.8]} 31. Rxe3 {[%clk 0:00:23.5]} 31...
Qxf2+ {[%clk 0:00:23.7]} 32. Kh1 {[%clk 0:00:24.1]} 32... Qxe3 {[%clk
0:00:24.6]} 33. h3 {[%clk 0:00:24.1]} 33... Qc1+ {[%clk 0:00:23.6]} 34. Kh2
{[%clk 0:00:24.7]} 34... Qf4+ {[%clk 0:00:25.1]} 35. Qxf4 {[%clk 0:00:23.8]}
35... Rxf4 {[%clk 0:00:27]} 36. Kg3 {[%clk 0:00:24.5]} 36... Rc4 {[%clk
0:00:28.1]} 0-1